bitfinex-derivatives/quotes_SOLF0:USTF0_20260114
["timestamp","ask_amount","ask_price","bid_price","bid_amount"]
[1768424452409,6.1032,147.47,147.41,3.30287485]
[1768424453308,0.05018925,147.45,147.41,3.30287485]
[1768424459909,0.11999913,147.51,147.41,3.30287485]
[1768424460114,0.11999913,147.51,147.41,3.25843797]
[1768424460318,0.11999913,147.51,147.42,3.25843797]
[1768424460908,3.22069006,147.53,147.45,3.30705491]
[1768424461716,3.22069006,147.55,147.45,3.30705491]
[1768424462019,0.04593183,147.51,147.49,0.04408835]
[1768424463415,0.04593183,147.51,147.45,3.25843797]
[1768424464521,6.14723183,147.51,147.45,3.25843797]
[1768424464720,6.14723183,147.51,147.47,0.0476048]
[1768424465814,0.16787415,147.5,147.42,3.25843797]
[1768424466121,0.16787415,147.48,147.37,3.25843797]
[1768424466721,0.04464297,147.44,147.41,0.04800342]
[1768424469425,6.1029,147.47,147.41,3.30644139]
[1768424469923,3.43175111,147.51,147.41,3.30644139]
[1768424470118,3.43175111,147.51,147.41,3.25843797]
[1768424470316,0.05129953,147.47,147.45,0.04991848]
[1768424472222,3.22069006,147.55,147.45,3.30835645]
[1768424472422,3.22069006,147.55,147.46,3.25843797]
[1768424472824,0.26131184,147.56,147.46,3.25843797]
[1768424473228,0.04733435,147.52,147.5,0.05026517]
[1768424473625,0.04733435,147.52,147.46,3.25843797]
[1768424474023,0.04733435,147.52,147.43,3.25843797]
[1768424474024,0.30830461,147.52,147.43,3.25843797]
[1768424474225,0.26097026,147.52,147.43,3.25843797]
[1768424474424,3.48132267,147.51,147.43,3.25843797]
[1768424474728,0.04521462,147.48,147.43,3.25843797]
[1768424476624,0.04521462,147.48,147.44,0.04521035]
[1768424476928,0.04521462,147.48,147.44,3.30364832]
[1768424478028,3.22069006,147.52,147.44,3.30364832]
[1768424478324,3.22069006,147.54,147.44,3.30364832]
[1768424478529,3.22069006,147.54,147.44,3.25843797]
[1768424479122,0.05165051,147.5,147.44,3.25843797]
[1768424480825,3.22069006,147.55,147.44,3.25843797]
[1768424481327,3.5776044,147.55,147.44,3.25843797]
[1768424482028,0.04402151,147.51,147.48,0.04394736]
[1768424482331,0.04402151,147.51,147.45,3.22994913]
[1768424485532,0.04402151,147.51,147.47,0.04966281]
[1768424485925,6.0999,147.55,147.47,3.27961194]
[1768424487034,0.04491209,147.52,147.47,3.27961194]
[1768424498438,0.04491209,147.52,147.47,0.04966281]
[1768424499837,6.1013,147.51,147.47,0.04966281]
[1768424500043,0.04491209,147.52,147.47,0.04966281]
[1768424500344,0.04491209,147.52,147.47,3.27961194]
[1768424501831,0.39577263,147.57,147.49,3.22994913]
[1768424502843,6.49457263,147.57,147.52,0.0486636]
[1768424503531,6.49457263,147.57,147.45,3.22069006]
[1768424503532,0.48393676,147.56,147.42,20.36]
[1768424503735,0.39130457,147.46,147.37,3.22994913]
[1768424503938,3.61199463,147.44,147.37,3.22994913]
[1768424504249,0.39130457,147.44,147.34,3.22994913]
[1768424504440,3.22069006,147.43,147.34,3.22994913]
[1768424504639,0.05109423,147.4,147.37,0.04925094]
[1768424505243,0.05109423,147.4,147.28,3.22994913]
[1768424505445,3.22069006,147.41,147.28,3.22994913]
[1768424505446,3.61153054,147.41,147.28,3.22994913]
[1768424506145,3.22069006,147.41,147.34,3.22994913]
[1768424507247,0.05138052,147.39,147.36,0.04445173]
[1768424510157,0.05138052,147.39,147.31,3.22994913]
[1768424510355,6.1058,147.4,147.31,3.22994913]
[1768424510559,6.1065,147.39,147.31,3.22994913]
[1768424510757,5.2647605,147.38,147.31,2.40109414]
[1768424511054,6.52666118,147.38,147.22,100.3542605]
[1768424511552,6.52666118,147.38,147.29,0.0493922]
[1768424511553,6.1073,147.37,147.29,0.0493922]
[1768424511857,6.1073,147.37,147.25,6.1117]
[1768424512352,7.41460681,147.37,147.3,0.04322029]
[1768424512554,0.04976798,147.35,147.3,0.04322029]
[1768424515059,0.04976798,147.35,147.3,3.22605647]
[1768424515961,6.1063,147.39,147.3,3.22605647]
[1768424516162,6.1063,147.39,147.3,3.18283618]
[1768424516956,0.04607578,147.36,147.33,0.04869927]
[1768424517664,12.77159527,147.43,147.33,3.23153545]
[1768424517862,12.77159527,147.43,147.33,3.18283618]
[1768424518650,12.77159527,147.43,147.37,0.04523452]
[1768424518651,0.04485351,147.39,147.37,0.04523452]
[1768424520270,1.44640638,147.46,147.37,3.2280707]
[1768424520459,1.44640638,147.46,147.37,3.18283618]
[1768424521161,6.71116688,147.49,147.38,3.18283618]
[1768424521361,6.71116688,147.49,147.4,0.04921598]
[1768424521567,6.71116688,147.49,147.38,3.18283618]
[1768424521967,12.81346688,147.49,147.39,3.18283618]
[1768424522169,1.49339105,147.48,147.39,3.18283618]
[1768424522363,0.05064855,147.45,147.42,0.04952797]
[1768424524565,1.49302278,147.51,147.42,3.23236415]
[1768424524769,1.49302278,147.51,147.42,3.18283618]
[1768424525567,0.04855795,147.48,147.45,0.04986115]
[1768424526771,1.54200827,147.48,147.39,3.18283618]
[1768424527070,1.49345032,147.48,147.39,3.18283618]
[1768424527873,1.49345032,147.48,147.42,0.04669914]
[1768424527874,0.04298782,147.45,147.42,0.04669914]
[1768424537776,3.555608,147.48,147.42,0.04669914]
[1768424538669,2.06215768,147.44,147.37,3.18283618]
[1768424538870,2.06215768,147.46,147.37,3.18283618]
[1768424539379,2.06215768,147.46,147.4,3.18283618]
[1768424539971,0.04826466,147.44,147.42,0.05175707]
[1768424549982,0.04826466,147.44,147.42,0.00876925]
[1768424551287,3.5460865,147.43,147.35,6.1075]
[1768424551490,2.06215768,147.41,147.34,3.04316596]
[1768424552286,0.04469368,147.39,147.36,0.05096853]
[1768424559491,9.6510865,147.42,147.36,3.09413449]
[1768424560597,0.0456355,147.4,147.36,3.09413449]
[1768424560786,0.0456355,147.4,147.36,0.05096853]
[1768424562285,2.10779318,147.4,147.36,0.05096853]
[1768424565693,0.0456355,147.4,147.36,3.09413449]
[1768424566081,1.52788211,147.47,147.36,3.09413449]
[1768424566285,2.06215768,147.45,147.36,3.04316596]
[1768424566688,2.06215768,147.45,147.38,3.04316596]
[1768424567188,2.06215768,147.45,147.4,0.04805033]
[1768424567189,0.04771738,147.43,147.4,0.04805033]
[1768424570399,3.59003979,147.47,147.4,3.09121629]
[1768424570587,2.06215768,147.49,147.4,3.09121629]
[1768424570793,3.63901611,147.49,147.4,3.04316596]
[1768424571094,1.57685843,147.52,147.43,3.0776099]
[1768424571300,1.57675571,147.55,147.46,3.12799535]
[1768424571495,1.57675571,147.55,147.46,3.0776099]
[1768424572494,1.57675571,147.55,147.49,0.05059671]
[1768424580597,1.57675571,147.55,147.43,3.0776099]
[1768424580598,1.52528598,147.51,147.43,3.0776099]
[1768424581301,1.52528598,147.51,147.44,9.1815099]
[1768424581500,0.05059671,147.49,147.46,0.04908837]
[1768424581901,1.52528598,147.51,147.46,0.04908837]
[1768424586105,10.84364107,147.54,147.46,0.04908837]
[1768424586401,1.5247524,147.54,147.46,3.12669827]
[1768424587899,1.5247524,147.54,147.46,9.22989827]
[1768424593511,1.5247524,147.54,147.47,3.0776099]
[1768424593713,1.5247524,147.54,147.49,0.04707266]
[1768424594307,1.47702347,147.53,147.44,9.1814099]
[1768424594508,1.47702347,147.53,147.44,3.0776099]
[1768424594815,1.47702347,147.51,147.44,3.0776099]
[1768424595211,7.57832347,147.51,147.44,3.0776099]
[1768424595412,0.04370468,147.49,147.46,0.04477708]
[1768424596114,0.04370468,147.49,147.44,3.0776099]
[1768424596813,1.52057335,147.49,147.41,3.0776099]
[1768424597001,1.47686867,147.49,147.41,3.0776099]
[1768424597206,0.04541598,147.46,147.44,0.04997928]
[1768424600215,6.102,147.5,147.44,3.12758918]
[1768424600414,1.47656958,147.51,147.44,3.12758918]
[1768424600722,9.31998867,147.52,147.44,3.12758918]
[1768424601114,10.84211277,147.52,147.44,3.12758918]
[1768424601312,0.04376875,147.49,147.44,3.12758918]
[1768424605719,7.62157725,147.55,147.44,3.12758918]
[1768424605918,7.62157725,147.55,147.44,3.0776099]
[1768424606628,7.62157725,147.55,147.48,0.04432821]
[1768424607723,7.66551278,147.54,147.48,0.04432821]
[1768424609742,1.56541278,147.54,147.48,3.23399384]
[1768424611939,1.56515538,147.56,147.48,3.23399384]
[1768424612442,6.0991,147.57,147.48,3.23399384]
[1768424612741,6.0991,147.57,147.51,0.04647711]
[1768424612938,7.66419287,147.57,147.51,0.04647711]
[1768424614640,6.0992,147.56,147.51,0.04647711]
[1768424615037,1.56509287,147.57,147.51,0.04647711]
[1768424616741,1.56484993,147.6,147.51,3.23614274]
[1768424616942,1.56484993,147.63,147.54,3.23939865]
[1768424617144,1.56484993,147.63,147.57,0.04924104]
[1768424617341,0.05156465,147.61,147.54,3.18966563]
[1768424618441,0.05156465,147.61,147.56,0.04325461]
[1768424620246,0.05156465,147.61,147.56,3.23292024]
[1768424623151,0.05156465,147.61,147.56,0.04325461]
[1768424623537,1.61601552,147.61,147.56,0.04325461]
[1768424623742,7.71321552,147.61,147.56,0.04325461]
[1768424624047,1.56445087,147.6,147.53,3.18966563]
[1768424624446,4.78323954,147.6,147.53,3.18966563]
[1768424624746,1.56439646,147.58,147.5,3.18966563]
[1768424625052,0.04638724,147.55,147.53,0.04312313]
[1768424627550,10.88082559,147.6,147.53,0.04312313]
[1768424628550,0.04877342,147.58,147.53,0.04312313]
[1768424628756,0.04877342,147.58,147.53,3.23278876]
[1768424630749,1.61157405,147.58,147.53,0.04312313]
[1768424631360,2.0589756,147.57,147.53,0.04312313]
[1768424634161,9.72042912,147.57,147.5,3.18890759]
[1768424634380,2.0589756,147.56,147.5,3.18890759]
[1768424635163,0.04276865,147.54,147.52,0.0500121]
[1768424639866,2.0589756,147.58,147.52,0.0500121]
[1768424640170,2.0589756,147.6,147.52,3.23891969]
[1768424640368,2.0589756,147.6,147.52,3.18890759]
[1768424640570,6.0979,147.59,147.52,3.18890759]
[1768424640771,2.0589756,147.58,147.52,3.18890759]
[1768424641073,0.04568401,147.56,147.54,0.04349962]
[1768424641765,2.0589756,147.6,147.54,0.04349962]
[1768424641972,7.70546926,147.61,147.54,3.23240721]
[1768424642178,2.0589756,147.61,147.54,3.23240721]
[1768424642571,3.66690118,147.61,147.54,0.04349962]
[1768424642874,2.0589756,147.57,147.51,3.18890759]
[1768424643073,3.66690118,147.57,147.47,3.18890759]
[1768424643672,2.0589756,147.55,147.48,3.18890759]
[1768424643976,0.04694351,147.53,147.5,0.04542006]
[1768424645973,2.0589756,147.55,147.5,3.23432765]
[1768424646175,1.60792558,147.57,147.5,3.23432765]
[1768424646477,3.66690118,147.57,147.5,3.23432765]
[1768424648071,3.66669016,147.55,147.5,0.04542006]
[1768424648271,3.66669016,147.55,147.51,0.05127641]
[1768424648977,2.0589756,147.53,147.47,3.18890759]
[1768424649276,3.6666494,147.53,147.47,3.18890759]
[1768424649678,3.6666494,147.53,147.44,3.18890759]
[1768424650080,0.04661298,147.5,147.47,0.05165991]
[1768424653588,2.0589756,147.53,147.47,3.2405675]
[1768424653879,2.0589756,147.54,147.47,3.2405675]
[1768424654883,8.1590756,147.54,147.47,3.2405675]
[1768424657490,2.0589756,147.54,147.47,3.2405675]
[1768424657789,1.6540899,147.55,147.47,3.2405675]
[1768424657987,2.0589756,147.56,147.47,3.2405675]
[1768424658289,2.0589756,147.56,147.5,3.23414611]
[1768424658785,2.0589756,147.58,147.5,3.23414611]
[1768424658983,2.0589756,147.58,147.53,0.04555188]
[1768424659889,3.71284376,147.58,147.53,0.04555188]
[1768424660592,9.81124376,147.58,147.53,0.00527101]
[1768424660981,2.0589756,147.56,147.5,3.18890759]
[1768424661984,0.04630577,147.54,147.52,0.0501291]
[1768424675905,1.6055015,147.53,147.46,3.29144988]
[1768424677004,0.04509718,147.51,147.48,0.04800188]
[1768424680110,0.04509718,147.51,147.48,3.33945176]
[1768424680708,2.0589756,147.54,147.48,3.33945176]
[1768424681811,0.04427059,147.52,147.48,3.33945176]
[1768424686717,2.0589756,147.57,147.49,3.29144988]
[1768424687618,2.0589756,147.58,147.52,0.04481568]
[1768424688214,8.1573756,147.58,147.52,0.04481568]
[1768424688418,1.65025662,147.57,147.52,0.04481568]
[1768424688720,2.0589756,147.56,147.52,0.04481568]
[1768424689619,3.70920798,147.56,147.52,0.04481568]
[1768424690415,1.64894732,147.55,147.52,0.04481568]
[1768424690715,2.0589756,147.54,147.47,3.1208902]
[1768424691620,0.05024688,147.52,147.49,0.04608372]
[1768424693715,1.69912476,147.52,147.45,3.1208902]
[1768424694728,1.69912476,147.52,147.47,0.04390057]
[1768424696221,7.80012476,147.52,147.47,0.04390057]
[1768424698314,1.60268364,147.51,147.47,0.04390057]
[1768424700222,7.70408364,147.51,147.47,0.04390057]
[1768424700523,1.60268364,147.51,147.47,0.04390057]
[1768424700824,1.60264119,147.5,147.43,3.1208902]
[1768424701718,94.8878,147.55,147.4,80.1]
[1768424701719,1.60262033,147.52,147.45,3.17282626]
[1768424701914,3.21932852,147.53,147.45,3.1208902]
[1768424702120,1.60262033,147.54,147.45,3.1208902]
[1768424702319,6.1006,147.53,147.45,3.1208902]
[1768424702717,0.04752658,147.5,147.48,0.05134104]
[1768424702921,6.1006,147.53,147.48,0.05134104]
[1768424703828,0.0475058,147.52,147.48,0.05134104]
[1768424712134,6.0994,147.56,147.48,3.17223124]
[1768424712433,1.60240609,147.58,147.48,3.1208902]
[1768424712926,7.70080609,147.58,147.5,3.1208902]
[1768424713328,7.70080609,147.58,147.53,0.05033975]
[1768424713623,0.0488566,147.57,147.5,3.1208902]
[1768424714333,1.64987578,147.56,147.48,3.1208902]
[1768424714528,0.05021561,147.53,147.48,3.1208902]
[1768424715135,0.05021561,147.53,147.46,3.1208902]
[1768424715435,1.64985804,147.54,147.46,3.1208902]
[1768424715630,0.04393632,147.51,147.48,0.04983273]
[1768424715832,1.69379436,147.51,147.43,3.1208902]
[1768424716035,1.64985804,147.5,147.4,3.1208902]
[1768424716238,3.26326484,147.51,147.4,3.1208902]
[1768424716239,7.75244049,147.48,147.4,3.1208902]
[1768424716533,1.64984049,147.48,147.4,3.1208902]
[1768424716838,0.04613316,147.45,147.43,0.05080589]
[1768424717027,0.0432389,147.45,147.43,0.05189316]
[1768424722233,0.0432389,147.45,147.39,3.05212415]
[1768424723441,0.0432389,147.45,147.41,3.09703938]
[1768424723641,1.65213501,147.5,147.41,3.09703938]
[1768424723845,1.65213501,147.5,147.41,3.05212415]
[1768424724742,4.92291138,147.49,147.44,0.04931842]
[1768424725842,6.1026,147.48,147.44,0.04931842]
[1768424728044,4.92291138,147.49,147.44,0.04931842]
[1768424728439,0.04433497,147.48,147.44,0.04931842]
[1768424729341,0.04433497,147.48,147.44,3.10144257]
[1768424731746,175.0262,147.55,147.44,4.46144257]
[1768424731747,3.21932852,147.55,147.44,4.46144257]
[1768424731948,4.96714183,147.55,147.45,3.05212415]
[1768424732751,0.04805084,147.51,147.49,0.04673089]
[1768424737355,3.21932852,147.57,147.49,3.09885504]
[1768424737557,3.21932852,147.57,147.49,3.05212415]
[1768424738458,3.21932852,147.57,147.52,0.04547715]
[1768424738752,6.0997,147.55,147.49,3.05212415]
[1768424739955,6.0997,147.55,147.51,0.04811156]
[1768424740153,6.0997,147.55,147.47,3.05212415]
[1768424740651,9.31822852,147.57,147.47,3.05212415]
[1768424741251,0.04888144,147.53,147.51,0.04696277]
[1768424741657,9.31822852,147.57,147.51,0.04696277]
[1768424742155,6.0989,147.57,147.51,0.04696277]
[1768424742747,0.04878435,147.55,147.51,0.04696277]
[1768424748760,0.04878435,147.55,147.51,3.09908692]
[1768424750065,6.0982,147.59,147.51,3.09908692]
[1768424750269,6.14673979,147.59,147.51,3.09908692]
[1768424750458,0.04706345,147.58,147.51,3.09908692]
[1768424750853,6.14546345,147.58,147.51,3.09908692]
[1768424751253,0.04279305,147.56,147.51,3.09908692]
[1768424753958,0.08982296,147.56,147.51,0.04696277]
[1768424754969,2.10611835,147.55,147.49,2.98123801]
[1768424755266,0.04701898,147.55,147.49,2.98123801]
[1768424755471,2.10611835,147.55,147.49,2.98123801]
[1768424755862,2.10611835,147.55,147.51,0.04782474]
[1768424757761,0.04279305,147.56,147.51,3.02906275]
[1768424757970,0.04698695,147.6,147.51,3.02906275]
[1768424758171,2.05909937,147.61,147.54,2.98123801]
[1768424759063,0.0479776,147.59,147.56,0.04673731]
[1768424760775,2.05909937,147.57,147.49,2.98123801]
[1768424761476,2.05909937,147.57,147.5,2.98123801]
[1768424761672,2.05909937,147.59,147.53,2.98123801]
[1768424762877,0.04654041,147.57,147.55,0.04318867]
[1768424763479,2.10563978,147.57,147.5,2.98123801]
[1768424764376,2.05909937,147.55,147.48,2.98123801]
[1768424764575,0.04712839,147.53,147.52,0.04887801]
[1768424764879,2.19477172,147.53,147.45,2.98123801]
[1768424766176,0.04712839,147.53,147.48,3.02810268]
[1768424769778,2.05909937,147.56,147.48,3.02810268]
[1768424769977,2.19472471,147.56,147.48,3.02810268]
[1768424770673,0.13561626,147.59,147.49,2.98123801]
[1768424770878,0.13561626,147.59,147.53,0.05209741]
[1768424770879,2.05909937,147.57,147.53,0.05209741]
[1768424771683,0.05036957,147.56,147.53,0.05209741]
[1768424783187,2.10946894,147.56,147.53,0.05209741]
[1768424783388,2.24832335,147.56,147.48,3.15128854]
[1768424783591,2.05909937,147.54,147.48,3.15128854]
[1768424784393,0.04712382,147.52,147.5,0.04856079]
[1768424788195,2.05909937,147.54,147.5,0.04856079]
[1768424788698,6.0996,147.55,147.5,0.04856079]
[1768424789395,0.04487648,147.54,147.5,0.04856079]
[1768424789700,2.10397585,147.54,147.5,0.04856079]
[1768424789902,8.38991004,147.54,147.5,0.04856079]
[1768424790193,2.28991004,147.54,147.5,0.04856079]
[1768424790599,0.18592715,147.51,147.43,3.15128854]
[1768424790792,2.24502652,147.5,147.43,3.15128854]
[1768424791588,0.04672265,147.48,147.45,0.04896388]
[1768424794003,0.18590649,147.47,147.4,3.15128854]
[1768424794405,2.05909937,147.46,147.4,3.15128854]
[1768424794602,8.16249937,147.46,147.4,3.15128854]
[1768424795206,0.05073585,147.44,147.42,0.04454241]
[1768424798499,0.05073585,147.44,147.38,3.15128854]
[1768424799714,0.05073585,147.44,147.4,0.04434732]
[1768424800710,2.05909937,147.47,147.4,3.19563586]
[1768424801702,0.05001981,147.45,147.4,3.19563586]
[1768424805810,2.10911918,147.45,147.4,0.04434732]
[1768424806812,8.21291918,147.45,147.4,0.04434732]
[1768424808218,2.10911918,147.45,147.4,0.04434732]
[1768424813321,0.05001981,147.45,147.4,0.04434732]
[1768424818518,6.15371981,147.45,147.4,0.04434732]
[1768424821223,6.39081792,147.45,147.4,0.04434732]
[1768424822624,0.23709329,147.44,147.4,0.04434732]
[1768424823121,0.19274121,147.43,147.36,3.15421422]
[1768424823316,3.41527639,147.48,147.36,3.15421422]
[1768424823511,0.19274121,147.48,147.36,3.15421422]
[1768424823718,0.19274121,147.48,147.41,3.15421422]
[1768424823920,6.1019,147.5,147.41,3.15421422]
[1768424824111,1.18050137,147.52,147.44,3.15421422]
[1768424824314,0.23692662,147.54,147.44,3.15421422]
[1768424824611,6.33722662,147.54,147.45,3.15421422]
[1768424825010,0.04646261,147.51,147.48,0.04649221]
[1768424825214,0.28338458,147.51,147.43,3.15421422]
[1768424826325,0.04646261,147.51,147.46,3.20378082]
[1768424826532,0.04667339,147.5,147.46,3.20378082]
[1768424827817,0.23709401,147.5,147.46,0.0495666]
[1768424828023,0.23709401,147.5,147.42,3.15421422]
[1768424829137,0.23709401,147.5,147.45,0.05201992]
[1768424829835,6.33879401,147.5,147.45,0.05201992]
[1768424832634,0.23709401,147.5,147.45,0.05201992]
[1768424833338,6.33879401,147.5,147.45,0.05201992]
[1768424837241,6.24291136,147.49,147.45,0.05201992]
[1768424838952,0.04667339,147.5,147.45,0.05201992]
[1768424840146,6.28937679,147.5,147.45,0.05201992]
[1768424840346,0.18747679,147.5,147.45,0.05201992]
[1768424841843,6.24261339,147.49,147.45,0.05201992]
[1768424843254,0.08838605,147.47,147.4,3.06448629]
[1768424844253,0.04623594,147.45,147.42,0.04531188]
[1768424846051,0.13461474,147.51,147.42,4.46979817]
[1768424846355,0.13461474,147.51,147.43,3.06448629]
[1768424846950,0.04554178,147.48,147.46,0.0518734]
[1768424847152,0.18014943,147.55,147.46,3.11635969]
[1768424847351,0.18014943,147.55,147.46,3.06448629]
[1768424848059,0.05188915,147.52,147.49,0.0510709]
[1768424850651,0.1801391,147.57,147.49,3.11555719]
[1768424850846,0.1801391,147.57,147.49,3.06448629]
[1768424851050,6.2790391,147.57,147.49,3.06448629]
[1768424851252,0.23202488,147.56,147.49,3.06448629]
[1768424851957,0.04767404,147.54,147.51,0.04566655]
[1768424874761,0.27919422,147.6,147.51,4.39728504]
[1768424874962,0.27919422,147.6,147.51,2.99161849]
[1768424875166,3.50172688,147.58,147.51,2.99161849]
[1768424875367,2.05941747,147.56,147.51,2.99161849]
[1768424875773,0.0445709,147.55,147.52,0.05199772]
[1768424878975,6.1443709,147.55,147.52,0.05199772]
[1768424879174,2.05941747,147.54,147.49,2.99161849]
[1768424879573,8.15941747,147.54,147.49,2.99161849]
[1768424880376,8.15941747,147.54,147.5,0.05054413]
[1768424881787,2.05941747,147.54,147.5,0.05054413]
[1768424883078,2.33859232,147.54,147.5,0.05054413]
[1768424883281,2.05941747,147.52,147.47,2.99161849]
[1768424884281,0.05151268,147.51,147.48,0.05121316]
[1768424884880,2.05941747,147.5,147.45,2.99161849]
[1768424885783,2.05941747,147.5,147.46,3.04378078]
[1768424886079,0.04538221,147.49,147.46,3.04378078]
[1768424887183,6.1009,147.52,147.46,3.04378078]
[1768424887380,2.05941747,147.51,147.46,3.04378078]
[1768424887982,2.05941747,147.51,147.4,2.99161849]
[1768424887983,2.33858109,147.47,147.4,2.99161849]
[1768424888285,2.05941747,147.45,147.4,2.99161849]
[1768424888677,8.16321747,147.45,147.4,2.99161849]
[1768424888880,2.05941747,147.45,147.4,2.99161849]
[1768424889072,2.33857892,147.45,147.41,0.0517957]
[1768424889279,2.05941747,147.43,147.37,2.99161849]
[1768424889976,8.16411747,147.43,147.37,2.99161849]
[1768424890575,8.16411747,147.43,147.39,0.05121896]
[1768424894186,2.05941747,147.43,147.39,3.04283745]
[1768424894379,0.04701645,147.44,147.39,3.04283745]
[1768424901187,0.22872804,147.4,147.32,3.28902989]
[1768424901388,2.05941747,147.33,147.26,3.28902989]
[1768424901688,0.22872804,147.36,147.26,3.28902989]
[1768424901888,2.05941747,147.35,147.26,3.28902989]
[1768424902280,0.04678077,147.32,147.27,3.28902989]
[1768424903387,0.04678077,147.32,147.16,3.28902989]
[1768424903388,0.22872445,147.27,147.16,3.28902989]
[1768424903580,0.04757451,147.23,147.2,0.04601208]
[1768424904097,0.22872445,147.27,147.2,0.04601208]
[1768424904098,2.05941747,147.26,147.2,0.04601208]
[1768424904296,2.05941747,147.26,147.2,3.33504197]
[1768424904489,2.05941747,147.28,147.2,3.33504197]
[1768424904790,2.05941747,147.28,147.2,3.28902989]
[1768424905293,0.04765903,147.25,147.2,3.28902989]
[1768424905592,2.05941747,147.28,147.21,3.34067818]
[1768424906183,2.05941747,147.3,147.21,3.34067818]
[1768424906388,2.05941747,147.3,147.21,3.28902989]
[1768424906588,2.05941747,147.3,147.24,0.05208937]
[1768424907790,2.05941747,147.3,147.24,3.34111926]
[1768424908893,2.05941747,147.32,147.24,3.34111926]
[1768424909090,2.05941747,147.32,147.24,3.28902989]
[1768424909395,2.33579402,147.34,147.25,3.28902989]
[1768424910187,2.33579402,147.34,147.28,0.04477853]
[1768424910389,6.1076,147.36,147.28,3.33380842]
[1768424910693,2.05941747,147.35,147.28,3.33380842]
[1768424911193,2.05941747,147.38,147.29,3.28902989]
[1768424911395,0.0515851,147.35,147.32,0.05166028]
[1768424911783,2.05941747,147.4,147.32,3.34069017]
[1768424911983,2.38190157,147.42,147.32,5.40010764]
[1768424912186,2.38190157,147.42,147.33,3.28902989]
[1768424912885,0.04630103,147.39,147.36,0.04389469]
[1768424914895,2.05941747,147.43,147.36,0.04389469]
[1768424915694,2.05941747,147.41,147.36,0.04389469]
[1768424915890,2.05941747,147.41,147.37,0.0466229]
[1768424917706,2.05941747,147.39,147.32,3.28902989]
[1768424918497,2.05941747,147.39,147.31,80.2]
[1768424918498,2.42819174,147.39,147.31,80.2]
[1768424918699,2.42819174,147.39,147.34,0.04653922]
[1768424918906,0.04877988,147.38,147.34,0.04653922]
[1768424919506,0.04877988,147.38,147.29,6.1102]
[1768424919507,2.05941747,147.37,147.29,83.48902989]
[1768424920007,2.05941747,147.37,147.3,3.28902989]
[1768424920504,0.04397376,147.35,147.32,0.04853204]
[1768424921205,2.05941747,147.37,147.32,0.04853204]
[1768424924096,6.1051,147.42,147.33,3.28902989]
[1768424924305,114.91072985,147.48,147.36,0.05212198]
[1768424924306,4.48760197,147.44,147.36,0.05212198]
[1768424924506,2.4281831,147.43,147.35,3.28902989]
[1768424925809,0.04285581,147.4,147.38,0.04299551]
[1768424926011,0.04285581,147.4,147.35,3.28902989]
[1768424926998,0.04285581,147.4,147.36,0.04536752]
[1768424928013,0.04285581,147.4,147.36,3.33439741]
[1768424930615,0.04285581,147.4,147.36,0.04536752]
[1768424931718,2.05941747,147.37,147.29,3.07532063]
[1768424932510,2.05941747,147.35,147.29,3.07532063]
[1768424932819,0.04867893,147.33,147.31,0.04867713]
[1768424934616,0.04867893,147.33,147.26,3.07532063]
[1768424935518,0.04867893,147.33,147.28,0.04408745]
[1768424936420,8.54424268,147.33,147.28,0.04408745]
[1768424936617,2.38676375,147.32,147.25,80.2]
[1768424936918,2.38676375,147.32,147.22,6.113]
[1768424937111,6.1088,147.33,147.17,3.07532063]
[1768424937112,7.65569488,147.29,147.17,3.07532063]
[1768424937317,2.38676256,147.28,147.17,3.07532063]
[1768424937508,0.05031742,147.24,147.21,0.0516023]
[1768424937919,2.38676256,147.28,147.21,0.0516023]
[1768424938118,2.38676256,147.34,147.21,3.12692293]
[1768424938323,2.38676256,147.34,147.21,3.07532063]
[1768424939026,0.05075754,147.29,147.21,3.07532063]
[1768424939216,0.05075754,147.29,147.24,3.07532063]
[1768424939416,8.49526256,147.34,147.25,0.04554432]
[1768424939617,8.49526256,147.34,147.24,3.07532063]
[1768424939812,8.49526256,147.34,147.25,3.07532063]
[1768424940418,103.57606711,147.37,147.23,80.2]
[1768424940419,0.05137058,147.31,147.28,3.12054798]
[1768424940724,2.38675907,147.37,147.28,3.07532063]
[1768424941116,8.49395907,147.37,147.28,3.07532063]
[1768424941319,2.38675907,147.37,147.28,3.07532063]
[1768424942219,6.1077,147.36,147.28,3.07532063]
[1768424942622,0.04771053,147.33,147.31,0.04545753]
[1768424943329,6.1068,147.38,147.31,3.12077816]
[1768424943516,2.43446734,147.4,147.31,3.07532063]
[1768424944318,0.05131073,147.37,147.34,0.05142666]
[1768424946427,0.05131073,147.37,147.31,3.07532063]
[1768424947430,0.05131073,147.37,147.33,0.05095735]
[1768424955524,0.05131073,147.37,147.31,3.07532063]
[1768424955525,2.48576459,147.37,147.28,3.07532063]
[1768424955729,2.43445386,147.37,147.28,3.07532063]
[1768424956230,2.43445386,147.37,147.24,3.07532063]
[1768424956434,8.49189555,147.34,147.25,3.07532063]
[1768424956635,0.0462836,147.31,147.28,0.05045904]
[1768424958646,2.42977727,147.31,147.21,3.07532063]
[1768424958841,2.38349367,147.31,147.21,3.07532063]
[1768424959845,0.04673113,147.27,147.21,3.07532063]
[1768424960745,2.43204617,147.27,147.18,3.0528353]
[1768424960944,0.04610449,147.24,147.21,0.04553959]
[1768424961344,2.38531504,147.27,147.21,0.04553959]